bitfinex/quotes_ETHUSD_20240703
["timestamp","ask_amount","ask_price","bid_price","bid_amount"]
[1720018026677,3.0,3316.6,3315.7,2.5564]
[1720018026882,0.5224978,3316.5,3315.7,2.5564]
[1720018030104,0.52253954,3316.2,3315.7,2.324]
[1720018030304,2.683,3316.3,3315.7,2.324]
[1720018030602,0.52253942,3316.2,3315.7,2.324]
[1720018030901,2.683,3316.3,3315.7,2.324]
[1720018031117,0.52253948,3316.2,3315.7,2.324]
[1720018031281,2.683,3316.3,3315.7,2.324]
[1720018031604,0.52253932,3316.2,3315.7,2.324]
[1720018031803,2.683,3315.9,3315.1,2.3218]
[1720018034566,7.32,3316.2,3315.1,2.3218]
[1720018034567,2.683,3315.5,3315.1,2.3218]
[1720018035225,2.683,3315.5,3315.1,2.55398]
[1720018035843,10.32,3316.2,3315.1,2.55398]
[1720018036050,3.52260314,3316.1,3315.3,2.2948]
[1720018036271,0.52260314,3316.0,3315.5,2.2948]
[1720018036564,7.32,3316.2,3315.4,0.06031638]
[1720018036565,7.32,3316.2,3315.7,2.3594]
[1720018040312,0.52251999,3316.0,3315.8,0.26188912]
[1720018040511,0.52251999,3316.1,3315.8,0.26188912]
[1720018040737,0.52251999,3316.0,3315.8,0.26188912]
[1720018040955,10.003,3316.5,3315.9,0.26212891]
[1720018040956,3.0,3316.4,3315.9,0.26212891]
[1720018041184,0.52252113,3316.3,3315.7,2.3594]
[1720018041460,0.52252113,3316.2,3315.7,2.3594]
[1720018041623,3.0,3316.4,3315.7,2.3594]
[1720018041624,0.52255465,3316.1,3315.7,2.3594]
[1720018041810,3.20555465,3316.1,3315.7,2.3594]
[1720018042014,0.52255465,3316.0,3315.7,2.3594]
[1720018045163,0.52256204,3315.9,3315.7,2.3594]
[1720018045347,0.52256204,3315.8,3315.7,2.59534]
[1720018048308,3.0,3316.4,3315.7,2.59534]
[1720018048438,0.52248981,3316.3,3315.9,2.2803]
[1720018048638,7.32,3317.1,3316.1,2.2803]
[1720018048893,0.52239874,3317.0,3316.3,2.2803]
[1720018049095,0.52239874,3316.9,3316.4,2.3405994]
[1720018049400,0.52239874,3316.8,3316.5,0.23405994]
[1720018049555,0.52239874,3316.7,3316.5,0.23405994]
[1720018049758,0.52239874,3316.6,3316.5,0.23405994]
[1720018049949,0.52239874,3316.9,3316.5,0.23405994]
[1720018050155,0.52239874,3316.8,3316.4,2.2803]
[1720018050390,0.52239874,3316.7,3316.4,2.2803]
[1720018050545,0.52239874,3316.6,3316.4,2.2803]
[1720018050741,0.52242189,3316.5,3316.4,2.2803]
[1720018051080,0.52244875,3316.5,3315.9,2.4269]
[1720018051248,0.52244875,3316.4,3316.0,0.2686434]
[1720018051442,0.52246364,3316.3,3316.0,0.2686434]
[1720018051687,0.52246364,3316.2,3316.1,0.26955434]
[1720018051859,2.683,3316.5,3316.1,0.26955434]
[1720018052056,0.5224615,3316.4,3316.1,0.26955434]
[1720018052376,0.5224615,3316.3,3316.1,0.26955434]
[1720018052553,0.5224615,3316.2,3316.1,0.26955434]
[1720018053287,0.5224615,3316.2,3316.1,2.76745434]
[1720018053501,2.683,3316.5,3316.1,2.4979]
[1720018053649,0.52245975,3316.4,3316.1,2.4979]
[1720018053848,0.52245975,3316.3,3316.1,2.4979]
[1720018054079,2.683,3316.5,3316.1,2.4979]
[1720018054287,0.52245903,3316.4,3316.2,0.24979]
[1720018054507,0.52245903,3316.3,3316.2,0.24979]
[1720018054788,3.0,3316.8,3316.2,2.51659]
[1720018055005,0.52240228,3316.7,3316.4,2.2668]
[1720018055181,0.52240228,3316.6,3316.4,2.52448897]
[1720018055346,7.32,3317.4,3316.5,0.06030003]
[1720018055545,5.683,3317.3,3316.6,2.3711]
[1720018055822,5.683,3317.3,3316.6,2.61424]
[1720018058285,1.52770649,3317.2,3316.6,2.61424]
[1720018058456,5.683,3317.3,3316.6,2.61424]
[1720018064709,2.683,3316.9,3316.6,2.3711]
[1720018065125,2.683,3317.2,3316.6,2.3711]
[1720018065450,0.52236586,3317.1,3316.6,2.3711]
[1720018065633,0.52236544,3317.0,3316.6,2.3711]
[1720018065791,2.683,3317.2,3316.6,2.60821]
[1720018065994,0.52236557,3317.1,3316.6,2.60821]
[1720018066192,2.683,3317.2,3316.6,2.60821]
[1720018066193,0.52236557,3317.0,3316.6,2.60821]
[1720018066394,2.683,3317.2,3316.6,2.60821]
[1720018066691,0.52236565,3317.1,3316.6,2.60821]
[1720018066895,2.683,3317.2,3316.6,2.60821]
[1720018067226,0.52236535,3317.1,3316.6,2.60821]
[1720018067827,2.683,3317.2,3316.6,2.60821]
[1720018068006,0.52236648,3317.0,3316.6,2.60821]
[1720018068209,2.683,3317.2,3316.6,2.60821]
[1720018068519,0.52236495,3317.1,3316.6,2.60821]
[1720018068703,0.52236495,3317.0,3316.7,0.260821]
[1720018068908,7.32,3317.4,3316.9,2.408]
[1720018069121,7.32,3317.4,3317.1,2.408]
[1720018070138,3.20532556,3317.3,3316.4,2.3091]
[1720018070495,0.5223413,3317.2,3316.4,2.3091]
[1720018070823,2.683,3317.3,3316.5,0.850644]
[1720018071333,0.52234162,3317.2,3316.5,0.850644]
[1720018071648,2.683,3317.3,3316.5,0.850644]
[1720018071946,0.52233862,3317.2,3316.5,0.850644]
[1720018072241,2.683,3317.3,3316.5,0.850644]
[1720018072450,2.683,3317.3,3316.7,2.2667]
[1720018072747,0.52233232,3317.2,3316.7,2.2667]
[1720018072909,2.683,3317.3,3316.7,2.2667]
[1720018073109,0.52233242,3317.2,3316.7,2.2667]
[1720018073317,2.683,3317.3,3316.7,2.2667]
[1720018073625,0.5223323,3317.2,3316.8,0.25826744]
[1720018073825,2.683,3317.3,3316.8,0.25826744]
[1720018073994,0.52233227,3317.2,3316.8,0.25826744]
[1720018074336,2.683,3317.3,3316.8,0.25826744]
[1720018074687,0.52233206,3317.2,3316.8,0.25826744]
[1720018074850,0.52233206,3317.2,3316.9,0.25249674]
[1720018075146,7.32,3317.4,3316.9,0.25249674]
[1720018075315,0.52231144,3317.3,3316.9,0.25249674]
[1720018075645,7.32,3317.4,3316.9,0.25249674]
[1720018075813,0.52230556,3317.3,3316.9,0.25249674]
[1720018076013,7.32,3317.4,3316.9,0.25249674]
[1720018076216,0.52230514,3317.3,3316.9,0.25249674]
[1720018076414,7.32,3317.4,3316.9,0.25249674]
[1720018076617,0.52230678,3317.3,3316.9,0.25249674]
[1720018076815,10.003,3317.7,3316.9,0.25249674]
[1720018077146,3.52230716,3317.6,3316.9,0.25249674]
[1720018077438,0.52230716,3317.5,3316.9,0.25249674]
[1720018077859,0.52229793,3317.4,3316.9,0.25249674]
[1720018077998,0.52229793,3317.4,3316.7,2.32699407]
[1720018078203,0.52230146,3317.3,3316.7,2.32699407]
[1720018078405,0.52230146,3317.2,3316.7,2.32699407]
[1720018078600,3.0,3317.6,3316.8,2.50769407]
[1720018081379,0.52230887,3317.3,3316.9,2.464]
[1720018081519,2.683,3317.4,3316.9,2.464]
[1720018081520,0.52230887,3317.2,3316.9,2.464]
[1720018081717,2.683,3317.4,3316.9,2.464]
[1720018081978,0.52231741,3317.3,3316.9,2.464]
[1720018082495,0.52231741,3317.2,3316.9,2.464]
[1720018082763,0.52231741,3317.1,3316.9,2.464]
[1720018082973,2.683,3317.4,3316.9,2.464]
[1720018083262,0.52231578,3317.3,3316.9,2.464]
[1720018083474,0.52231578,3317.2,3316.9,2.464]
[1720018083632,0.52231578,3317.3,3316.9,2.464]
[1720018083838,0.52231578,3317.2,3316.9,2.464]
[1720018084044,2.683,3317.4,3316.9,2.464]
[1720018084045,0.52231578,3317.1,3316.9,2.464]
[1720018084247,2.683,3317.4,3316.9,2.464]
[1720018084431,0.52231302,3317.3,3316.9,2.464]
[1720018084774,0.52231302,3317.2,3316.9,2.464]
[1720018084973,0.52231302,3317.1,3316.9,2.464]
[1720018085158,0.52231302,3317.3,3316.9,2.464]
[1720018086547,0.52231439,3317.2,3316.9,2.464]
[1720018086736,0.52231439,3317.1,3316.9,2.464]
[1720018086959,0.52231439,3317.3,3316.9,2.464]
[1720018087143,0.52231439,3317.2,3316.9,2.464]
[1720018087359,0.52231439,3317.3,3316.9,2.464]
[1720018088550,0.52231439,3317.3,3317.0,0.13765]
[1720018088745,0.52231439,3317.3,3316.9,2.464]
[1720018089814,2.683,3317.4,3316.9,2.464]
[1720018090023,0.52230797,3317.2,3316.9,2.464]
[1720018090232,0.52230797,3317.1,3316.9,2.464]
[1720018090369,3.0,3317.7,3317.0,0.2464]
[1720018090577,3.0,3317.7,3316.9,2.464]
[1720018090776,0.52229769,3317.6,3316.9,2.464]
[1720018090978,0.52229769,3317.5,3317.0,0.06029064]
[1720018091270,0.52229769,3317.4,3317.1,2.4098]
[1720018091486,0.52229769,3317.3,3317.1,2.65680906]
[1720018091718,3.0,3317.7,3317.1,2.65680906]
[1720018091921,0.52225093,3317.6,3317.1,2.65680906]
[1720018092218,0.52225093,3317.5,3317.1,2.65680906]
[1720018092384,0.52225093,3317.4,3317.2,0.27170997]
[1720018092600,3.0,3317.7,3317.2,0.27170997]
[1720018092930,3.0,3317.7,3317.3,2.3401]
[1720018093077,7.32,3317.8,3317.3,2.3401]
[1720018093078,0.52223515,3317.6,3317.3,2.3401]
[1720018093279,7.32,3317.8,3317.4,0.261181]
[1720018093525,0.52221763,3317.7,3317.4,0.261181]
[1720018093710,0.52221763,3317.6,3317.4,0.261181]
[1720018093923,0.52221763,3317.5,3317.4,0.261181]
[1720018094085,0.52221763,3317.7,3317.4,0.261181]
[1720018094288,0.52221763,3317.7,3317.3,2.3401]
[1720018096210,7.32,3317.8,3317.3,2.3401]
[1720018096409,0.52221027,3317.7,3317.3,2.3401]
[1720018096615,7.32,3317.8,3317.3,2.3401]
[1720018096827,0.52221211,3317.7,3317.3,3.220948]
[1720018097135,7.32,3317.8,3317.4,0.06028098]
[1720018097430,7.32,3317.8,3317.5,2.2519]
[1720018097637,3.0,3318.2,3317.5,2.2519]
[1720018097938,3.5221881,3318.1,3317.6,0.54339]
[1720018098096,0.5221881,3318.0,3317.5,2.2519]
[1720018098295,0.5221881,3318.3,3317.5,2.2519]
[1720018099634,3.0,3318.4,3317.5,2.2519]
[1720018099635,0.52219289,3318.2,3317.5,2.2519]
[1720018099854,0.52219289,3318.1,3317.5,2.2519]
[1720018100207,0.52219289,3318.0,3317.5,2.2519]
[1720018100433,0.52219289,3317.9,3317.6,0.54339]
[1720018100638,0.52219289,3317.9,3317.5,2.2519]
[1720018100812,0.52219289,3317.8,3317.5,2.2519]
[1720018101131,3.0,3318.4,3317.5,2.2519]
[1720018101332,0.52218794,3318.3,3317.7,2.4571]
[1720018101514,0.52218794,3318.2,3317.7,2.4571]
[1720018101709,3.0,3318.4,3317.7,2.4571]
[1720018101710,0.52218794,3318.1,3317.7,2.4571]
[1720018102019,0.52218794,3318.0,3317.7,2.77961047]
[1720018102333,3.0,3318.4,3317.7,2.77961047]
[1720018102561,3.0,3318.4,3317.7,2.4571]
[1720018102704,0.52215782,3318.3,3317.7,2.4571]
[1720018102901,0.52215782,3318.2,3317.7,2.4571]
[1720018103141,0.52215841,3318.1,3317.7,2.4571]
[1720018103304,0.52215841,3318.0,3317.8,0.06027588]
[1720018103499,3.0,3318.4,3318.0,2.3503]
[1720018103753,3.0,3318.4,3318.0,2.41057008]
[1720018103754,0.52211674,3318.3,3318.0,2.41057008]
[1720018104238,3.0,3318.4,3318.0,2.41057008]
[1720018104625,3.0,3318.4,3318.0,2.3503]
[1720018104866,0.52211578,3318.3,3318.0,2.3503]
[1720018105064,3.0,3318.4,3318.0,2.3503]
[1720018105377,0.5221262,3318.3,3318.0,2.3503]
[1720018105532,3.0,3318.4,3318.0,2.3503]
[1720018105739,3.0,3318.4,3317.5,2.3062]
[1720018105740,0.52212432,3318.3,3317.5,2.3062]
[1720018105945,4.032,3318.4,3317.5,2.3062]
[1720018105946,0.52214663,3318.2,3317.5,2.3062]
[1720018106144,4.032,3318.4,3317.5,2.3062]
[1720018106385,0.52215701,3318.3,3317.5,2.3062]
[1720018106584,1.70957271,3318.3,3317.5,2.3062]
[1720018106748,0.52215701,3318.2,3317.5,2.3062]
[1720018108049,2.683,3317.8,3316.8,2.3894]
[1720018108250,3.52215701,3317.7,3316.8,2.3894]
[1720018108439,1.14267271,3317.6,3316.8,2.3894]
[1720018108652,0.52215701,3317.5,3316.8,2.3894]
[1720018109070,0.52229996,3317.4,3316.8,2.3894]
[1720018109255,0.6205157,3317.6,3316.8,2.3894]
[1720018109486,0.52230054,3317.5,3316.8,2.3894]
[1720018109805,0.52230054,3317.4,3316.8,2.3894]
[1720018110094,0.6205157,3317.6,3316.8,2.3894]
[1720018110255,0.52229868,3317.5,3316.8,2.3894]
[1720018110452,0.52229868,3317.4,3316.8,2.3894]
[1720018110652,3.5683,3317.7,3316.8,2.3894]
[1720018112684,0.52228757,3317.6,3316.8,2.62834]
[1720018112870,0.52228757,3317.5,3316.8,2.62834]
[1720018113198,0.52228757,3317.4,3316.8,2.3894]
[1720018113387,0.52228757,3317.5,3316.8,2.3894]
[1720018113802,0.52228757,3317.6,3316.8,2.3894]
[1720018114467,0.52228757,3317.6,3316.8,2.62834]
[1720018114668,0.52228757,3317.6,3316.9,2.2841]
[1720018115088,0.52228757,3317.9,3316.9,2.2841]
[1720018115284,0.52228757,3317.8,3316.9,2.2841]
[1720018115482,0.52228757,3317.7,3317.0,0.570504]
[1720018115694,0.52225424,3317.6,3317.0,0.570504]
[1720018115877,5.683,3318.0,3316.9,2.2841]
[1720018116270,0.52225492,3317.9,3316.9,2.2841]
[1720018116578,0.52225492,3317.8,3316.9,2.2841]
[1720018116781,0.52225492,3317.7,3317.1,2.3393]
[1720018117021,0.52225492,3317.9,3317.1,2.3393]
[1720018117169,0.52225492,3317.8,3317.1,2.3393]
[1720018117479,0.52225492,3317.7,3317.1,2.3393]
[1720018117679,0.52225492,3317.6,3317.1,2.3393]
[1720018117905,5.683,3318.0,3317.1,2.3393]
[1720018117906,0.52225492,3317.9,3317.1,2.3393]
[1720018118091,0.52225492,3317.8,3317.1,2.3393]
[1720018118992,0.52228832,3317.7,3317.1,2.3393]
[1720018119301,1.3003,3317.9,3317.1,2.3393]
[1720018119302,0.52228832,3317.6,3317.1,2.3393]
[1720018119498,0.52228832,3317.8,3317.1,2.3393]
[1720018119700,0.70454715,3317.7,3317.1,2.3393]
[1720018119904,0.52228832,3317.6,3317.1,2.3393]
[1720018120099,0.52228832,3317.5,3317.1,2.3393]
[1720018120402,0.52228832,3317.4,3317.1,2.3393]
[1720018120698,0.52228832,3317.3,3317.1,2.3393]
[1720018120898,0.52228832,3317.6,3317.1,2.3393]
[1720018122265,0.52229061,3317.5,3317.1,2.3393]
[1720018122473,0.52229061,3317.4,3317.1,2.3393]
[1720018122781,0.52229061,3317.3,3317.1,2.3393]
[1720018122981,2.683,3317.2,3316.4,2.2728]
[1720018123171,0.52229061,3317.1,3316.4,2.2728]
[1720018123365,0.52229061,3317.1,3316.4,2.81828]
[1720018123639,0.52229061,3317.1,3316.4,2.2728]
[1720018124957,2.683,3316.8,3316.4,2.2728]
[1720018125079,0.52229061,3316.7,3316.4,2.2728]
[1720018125475,0.52242618,3316.6,3316.4,2.2728]
[1720018125774,2.683,3316.8,3316.4,2.2728]
[1720018125975,0.52242339,3316.7,3316.4,2.2728]
[1720018126176,2.683,3316.8,3316.4,2.2728]
[1720018126375,0.52242278,3316.7,3316.4,2.2728]
[1720018126578,2.683,3316.8,3316.4,2.2728]
[1720018126895,0.52241876,3316.7,3316.4,2.2728]
[1720018127086,2.683,3316.8,3316.4,2.2728]
[1720018130814,2.683,3316.8,3315.7,2.4791]
[1720018130815,2.9513,3316.8,3315.7,2.4791]
[1720018131025,3.52243142,3316.7,3315.7,2.4791]
[1720018131181,0.52243142,3316.6,3315.7,2.4791]
[1720018131914,0.52246368,3316.5,3315.7,2.4791]
[1720018132080,3.84233,3316.7,3315.7,2.4791]
[1720018132283,2.683,3316.4,3315.7,2.4791]
[1720018132695,0.52249404,3316.3,3315.7,2.4791]
[1720018132905,2.683,3316.4,3315.7,2.4791]
[1720018133116,0.52250768,3316.3,3315.7,2.4791]
[1720018133416,2.2792,3316.3,3315.2,2.3333]
[1720018133587,2.683,3316.0,3315.2,2.3333]
[1720018133783,0.52252401,3315.9,3315.2,2.3333]
[1720018133984,3.52252401,3315.9,3315.2,2.3333]
[1720018134183,0.52252401,3315.8,3315.2,2.3333]
[1720018134997,3.6205524,3315.9,3315.2,2.3333]
[1720018135202,0.52260009,3315.8,3315.2,2.3333]
[1720018135402,3.6205524,3315.9,3315.2,2.3333]
[1720018135711,0.52260008,3315.8,3315.2,2.3333]
[1720018135928,3.0,3315.9,3315.2,2.3333]
[1720018136128,3.0,3315.9,3315.3,0.23333]
[1720018136929,3.0,3315.9,3315.2,2.3333]
[1720018139402,2.683,3316.0,3315.2,2.3333]
[1720018142759,3.0,3315.9,3315.2,2.3333]
[1720018143812,3.0,3315.9,3315.3,2.48722042]
[1720018144012,3.0,3315.9,3315.5,2.4269]
[1720018144243,2.683,3316.0,3315.5,2.4269]
[1720018144441,7.5883,3316.4,3315.5,2.67562185]
[1720018144442,10.003,3316.4,3315.5,2.67562185]
[1720018144759,3.0,3316.3,3315.5,2.67562185]
[1720018145052,3.0,3316.3,3315.6,2.4358]
[1720018145262,3.0,3316.3,3315.7,0.26845219]
[1720018145617,3.0,3316.3,3315.8,2.3205]
[1720018145818,10.003,3316.4,3315.8,2.3205]
[1720018147541,7.32,3316.4,3315.8,2.3205]
[1720018147748,7.32,3316.4,3316.0,2.3384]
[1720018147943,3.0,3316.7,3316.0,2.3384]
[1720018148142,3.0,3316.7,3316.0,2.57827098]
[1720018149445,3.0,3316.7,3316.0,2.3384]
[1720018149647,0.52246532,3316.6,3316.0,2.3384]
[1720018149850,3.0,3316.7,3316.0,2.3384]
[1720018150049,0.52246338,3316.6,3316.0,2.3384]
[1720018150253,0.52246338,3316.5,3316.0,2.3384]
[1720018150455,0.52246338,3316.6,3316.0,2.3384]
[1720018150655,0.52247487,3316.5,3316.0,2.3384]
[1720018150855,1.35254634,3316.6,3316.0,2.3384]
[1720018151061,0.52247636,3316.5,3316.0,2.3384]
[1720018151236,0.52247636,3316.4,3316.0,2.3384]
[1720018151434,0.52247636,3316.5,3315.3,3.182]
[1720018151752,2.683,3316.4,3315.4,2.7968]
[1720018152166,2.683,3316.4,3315.4,2.4786]
[1720018152347,0.52248132,3316.3,3315.4,2.4786]
[1720018152518,0.52248132,3316.2,3315.4,2.4786]
[1720018153954,0.52254375,3316.1,3315.4,2.4786]
[1720018154145,0.52254375,3316.0,3315.4,2.4786]
[1720018154465,0.52254335,3315.9,3315.4,2.4786]
[1720018154787,0.52254335,3315.9,3314.4,1.0]
[1720018154788,0.52258367,3315.8,3314.5,3.182]
[1720018155092,0.522566,3315.7,3314.9,3.182]
[1720018155274,10.32,3316.2,3315.0,2.2633]
[1720018155586,0.52253396,3316.1,3315.0,2.2633]
[1720018155792,0.52253396,3316.0,3315.0,2.2633]
[1720018155959,0.52253396,3316.0,3315.2,2.2633]
[1720018156160,0.52253396,3315.9,3315.2,2.2633]
[1720018156389,0.52253396,3316.0,3315.2,2.2633]
[1720018156589,0.52253366,3315.9,3315.2,2.2633]
[1720018156773,3.0,3316.1,3315.3,0.22633]
[1720018157083,0.5225337,3316.0,3315.3,0.22633]
[1720018157285,0.5225337,3315.9,3315.3,0.22633]
[1720018157450,3.0,3316.1,3315.4,0.248963]
[1720018157651,0.52253352,3316.0,3315.5,2.3705]
[1720018157978,0.52253352,3315.9,3315.5,2.3705]
[1720018158286,3.0,3316.1,3315.5,2.3705]
[1720018158448,0.52253287,3316.0,3315.5,2.3705]
[1720018158644,0.52253287,3315.9,3315.5,2.3705]
[1720018158851,0.52253287,3316.0,3315.5,2.60755]
[1720018159162,3.0,3316.1,3315.5,2.60755]
[1720018159484,7.32,3316.2,3315.5,2.60755]
[1720018159661,0.52248781,3316.1,3315.5,2.60755]
[1720018160002,7.32,3316.2,3315.7,2.3186]
[1720018160148,0.52248615,3316.1,3315.7,2.3186]
[1720018160485,10.32,3316.5,3315.7,2.3186]
[1720018160680,0.52248582,3316.4,3315.7,2.3186]
[1720018160990,0.52248582,3316.3,3315.7,2.5765355]
[1720018161147,0.52248582,3316.4,3315.7,2.5765355]
[1720018161687,0.52248582,3316.4,3315.7,2.3186]
[1720018162047,0.52248582,3316.4,3314.6,2.3245]
[1720018162048,5.96048582,3316.4,3314.6,2.3245]
[1720018162273,5.96048582,3316.4,3314.3,4.12843465]
[1720018162274,2.683,3315.8,3314.7,2.3183]
[1720018162450,0.52248582,3315.7,3314.9,2.3183]
[1720018162980,0.52248582,3315.7,3315.0,0.06032187]
[1720018163145,0.52248582,3315.6,3315.1,2.3183]
[1720018163349,0.52248582,3316.0,3315.3,2.3183]
[1720018163584,0.52253128,3315.9,3315.3,2.37861969]
[1720018163741,3.0,3316.1,3315.3,2.37861969]
[1720018163742,0.52253128,3315.8,3315.3,2.37861969]
[1720018163952,3.0,3316.1,3315.3,2.37861969]
[1720018164152,0.52252904,3316.0,3315.3,2.64026788]
[1720018164455,0.52252904,3315.9,3315.3,2.57994819]
[1720018164643,0.52252904,3315.8,3315.3,2.57994819]
[1720018164847,3.0,3316.1,3315.3,2.57994819]
[1720018165100,0.52251585,3316.0,3315.3,2.57994819]
[1720018165271,0.52251585,3315.9,3315.4,0.25799482]
[1720018165490,7.32,3316.3,3315.5,2.4457]
[1720018165682,0.52247097,3316.2,3315.6,2.50601031]
[1720018165908,7.32,3316.3,3315.6,2.50601031]
[1720018166053,0.52245691,3316.2,3315.6,2.50601031]
[1720018166355,7.32,3316.3,3315.6,2.4457]
[1720018166558,0.5224592,3316.2,3315.6,2.4457]
[1720018166752,7.32,3316.3,3315.7,0.24457]
[1720018166957,0.5224658,3316.1,3315.7,0.24457]
[1720018167264,7.32,3316.3,3315.7,0.24457]
[1720018167481,0.52246744,3316.2,3315.7,0.24457]
[1720018167678,0.52246744,3316.1,3315.7,0.24457]
[1720018167991,7.32,3316.3,3315.7,0.24457]
[1720018168204,0.52246786,3316.2,3315.7,0.24457]
[1720018168355,0.52246786,3316.1,3315.8,0.269027]
[1720018168555,7.32,3316.3,3315.8,0.269027]
[1720018168750,0.52246163,3316.2,3315.9,2.4603]
[1720018169060,3.0,3316.6,3315.9,2.4603]
[1720018169259,0.52243293,3316.5,3315.9,2.4603]
[1720018169468,0.52243293,3316.4,3315.9,2.4603]
[1720018169654,0.52243293,3316.3,3316.0,0.24603]
[1720018169859,0.52243293,3316.5,3316.1,2.2999]
[1720018170116,3.0,3317.0,3316.1,2.2999]
[1720018170260,0.52238902,3316.9,3316.2,0.06030394]
[1720018170462,0.52238902,3316.8,3316.2,0.06030394]
[1720018170766,0.52238902,3316.7,3316.2,0.06030394]
[1720018170972,0.52238902,3316.6,3316.1,2.2999]
[1720018171184,0.52238902,3316.5,3316.1,2.2999]
[1720018171387,3.0,3316.7,3316.1,2.2999]
[1720018171388,0.52238902,3316.6,3316.1,2.2999]
[1720018173490,0.52240701,3316.5,3316.1,2.2999]
[1720018173698,3.0,3316.7,3316.1,2.2999]
[1720018173874,0.52240606,3316.6,3316.1,2.2999]
[1720018174072,0.52240606,3316.5,3316.1,2.2999]
[1720018174261,3.0,3316.7,3316.1,2.2999]
[1720018174458,0.52239947,3316.6,3316.1,2.53592041]
[1720018174661,2.683,3317.2,3316.3,2.3426]
[1720018174881,0.52236916,3317.1,3316.3,2.3426]
[1720018175087,0.52236916,3317.0,3316.3,2.3426]
[1720018175294,0.52236916,3316.9,3316.4,0.23426]
[1720018175483,0.52236916,3316.8,3316.4,0.23426]
[1720018175798,3.0,3317.1,3316.4,0.23426]
[1720018175999,0.52235971,3317.0,3316.4,0.23426]
[1720018176206,0.52235971,3316.9,3316.4,0.23426]
[1720018176502,0.5223598,3316.8,3316.4,0.23426]
[1720018176803,3.0,3317.1,3316.4,0.23426]
[1720018176977,0.52235878,3317.0,3316.5,0.06029834]
[1720018177178,0.52235878,3316.9,3316.6,2.4385]
[1720018177373,3.0,3317.1,3316.6,2.4385]
[1720018177572,2.683,3317.7,3316.6,2.4385]
[1720018177573,0.52235103,3317.0,3316.6,2.4385]
[1720018177789,0.52235103,3316.9,3316.6,2.4385]
[1720018178000,3.0,3317.3,3316.6,2.4385]
[1720018178201,1.55434963,3317.2,3316.6,2.4385]
[1720018178386,0.52234963,3317.1,3316.6,2.4385]
[1720018179585,0.52234963,3317.2,3316.6,2.4385]
[1720018179799,0.52234963,3317.0,3316.6,2.4385]
[1720018180125,3.0,3317.3,3316.6,2.4385]
[1720018180412,4.032,3317.3,3316.6,2.4385]
[1720018180583,0.52234637,3317.2,3316.6,2.4385]
[1720018180783,0.52234637,3317.1,3316.6,2.4385]
[1720018180992,0.52234637,3317.0,3316.6,2.4385]
[1720018181181,4.032,3317.3,3316.6,2.4385]
[1720018181382,0.5223409,3317.2,3316.6,2.4385]
[1720018181675,0.5223409,3317.1,3316.6,2.4385]
[1720018181876,4.032,3317.3,3316.6,2.4385]
[1720018182081,0.52233309,3317.2,3316.6,2.4385]
[1720018182267,0.52233309,3317.1,3316.6,2.4385]
[1720018182612,3.0,3317.3,3316.6,2.4385]
[1720018182822,0.52233152,3317.2,3316.6,2.4385]
[1720018183106,3.0,3317.3,3316.6,2.4385]
[1720018183317,0.52233253,3317.1,3316.7,0.06029833]
[1720018183483,3.0,3317.6,3316.7,0.06029833]
[1720018183682,0.52230545,3317.5,3316.8,2.3949]
[1720018183924,0.52230545,3317.4,3316.8,2.3949]
[1720018184111,3.0,3317.6,3316.8,2.66480483]
[1720018184319,0.52229212,3317.5,3316.8,2.66480483]
[1720018184518,0.52229212,3317.4,3316.8,2.66480483]
[1720018184824,3.0,3317.6,3316.8,2.66480483]
[1720018185147,0.52229413,3317.5,3316.8,2.3949]
[1720018185294,0.52229413,3317.4,3316.8,2.3949]
[1720018185500,0.52229413,3317.5,3316.8,2.3949]
[1720018186416,0.52230465,3317.4,3316.8,2.3949]
[1720018186616,3.0,3317.6,3316.8,2.3949]
[1720018186816,0.52230201,3317.5,3316.8,2.3949]
[1720018187029,0.52230201,3317.4,3316.8,2.3949]
[1720018187235,3.0,3317.6,3316.8,2.3949]
[1720018187401,0.52230343,3317.5,3316.8,2.3949]
[1720018187738,0.52230343,3317.4,3316.8,2.3949]
[1720018187925,4.3003,3317.6,3316.8,2.3949]
[1720018188125,0.52230341,3317.5,3316.8,2.3949]
[1720018188326,0.52230341,3317.4,3316.8,2.3949]
[1720018188503,0.52230341,3317.5,3316.8,2.3949]
[1720018190298,0.52230341,3317.5,3316.8,2.63439]
[1720018191298,0.52230341,3317.5,3316.8,2.3949]
[1720018193102,0.52229502,3317.4,3316.8,2.3949]
[1720018193304,0.52229502,3317.3,3316.8,2.3949]
[1720018193504,3.0,3317.6,3316.8,2.3949]
[1720018193705,0.52229575,3317.5,3316.8,2.3949]
[1720018193906,0.52229575,3317.4,3316.8,2.3949]
[1720018194231,3.0,3317.6,3316.8,2.3949]
[1720018194443,0.52228313,3317.5,3316.8,2.3949]
[1720018194604,0.52228313,3317.4,3316.8,2.3949]
[1720018194800,0.52228313,3317.3,3316.8,2.3949]
[1720018195003,3.0,3317.6,3316.8,2.3949]
[1720018195220,0.52228716,3317.5,3316.8,2.3949]
[1720018195420,0.52228716,3317.4,3316.8,2.3949]
[1720018195619,0.52228716,3317.3,3316.8,2.3949]
[1720018195842,1.115,3317.4,3316.8,2.3949]
[1720018196045,0.52228088,3317.3,3316.8,2.3949]
[1720018196207,1.115,3317.4,3316.8,2.3224]
[1720018196405,0.52228238,3317.3,3316.8,2.3224]
[1720018196625,1.115,3317.4,3316.8,2.3224]
[1720018196818,0.52228111,3317.3,3316.8,2.3224]
[1720018197027,1.115,3317.4,3316.8,2.3224]
[1720018197314,0.52228106,3317.3,3316.8,2.3224]
[1720018197537,0.52228117,3317.2,3316.8,2.3224]
[1720018197758,1.115,3317.4,3316.8,2.3224]
[1720018198060,0.52228631,3317.3,3316.8,2.3224]
[1720018198376,0.52228631,3317.2,3316.8,2.3224]
[1720018198650,3.0,3317.7,3316.9,6.19679]